[Event "WYCC 2018 O16"]
[Site "Halkidiki"]
[Date "2018.10.22"]
[Round "4"]
[White "Stoleriu, George"]
[Black "Kovacsy, Barnabas"]
[Result "1-0"]
[ECO "B47"]
[WhiteElo "2362"]
[BlackElo "2104"]
[Annotator "NA"]
[PlyCount "61"]
[EventDate "2018.10.20"]
[EventType "swiss"]
[EventCountry "GRE"]
[SourceTitle "playchess.com"]
[Source "ChessBase"]
[SourceQuality "1"]
[TimeControl "40/5400+30:1800+30"]

1. e4 {[%emt 0:00:00]} c5 {[%emt 0:00:00]} 2. Nf3 {[%emt 0:00:00]} e6 {[%emt 0:00:00]} 3. d4 {[%emt 0:00:00]} cxd4 {[%emt 0:00:00]} 4. Nxd4 {[%emt 0:00:00]} Nc6 {[%emt 0:00:00]} 5. Nc3 {[%emt 0:00:00]} Qc7 {[%emt 0:00:01]} 6. Qd3 {[%emt 0:00:00] B47: Sicilian: Taimanov: 5 Nc3 Qc7 6 f4, 6 g3 and 6 Be2} (6. Be3 a6 7. Qf3 Nf6 8. O-O-O Ne5 9. Qg3 b5 10. a3 Bb7 11. Bxb5 Rc8 12. Ba4 Nxe4 13. Nxe4 Bxe4 14. Bf4 Qc4 15. Bxe5 Qxa4 {1-0 (38) Vachier Lagrave,M (2789)-Anand,V (2776) Karlsruhe/Baden-Baden 2018}) 6... a6 {[%emt 0:02:47]} 7. Nxc6 {[%emt 0:00:29]} bxc6 {[%emt 0:00:13]} 8. Qg3 {[%emt 0:00:06]} e5 {[%emt 0:05:26]} 9. f4 {[%emt 0:02:04]} d6 {[%emt 0:00:38]} 10. Be2 $146 {[%emt 0:04:05]} ({Predecessor:} 10. fxe5 dxe5 11. Bc4 Be6 12. Bxe6 fxe6 13. Qg4 Qe7 {0-1 (60) Dube,D (1652)-Gauthier,D (1859) Montreal 2016}) 10... g6 {[%emt 0:02:45]} 11. fxe5 {[%emt 0:03:16]} dxe5 {[%emt 0:00:52]} 12. O-O {[%emt 0:00:54]} Be6 {[%emt 0:06:33]} 13. Kh1 {[%emt 0:04:24]} Bg7 {[%emt 0:00:00]} 14. Na4 {[%emt 0:10:15]} Nf6 {[%emt 0:05:41]} 15. Nc5 {[%emt 0:01:32]} Qe7 {[%emt 0:00:10]} 16. Qf2 {[%emt 0:17:56]} Ng4 {[%emt 0:06:56]} 17. Bxg4 {[%emt 0:02:05]} Bxg4 {[%emt 0:00:03]} 18. Bg5 {[%emt 0:00:21]} Qc7 {[%emt 0:01:24]} 19. h3 {[%emt 0:13:32]} Bc8 {[%emt 0:06:49]} 20. Bd8 {[%emt 0:03:34]} Kxd8 $18 {[%emt 0:01:24]} (20... Qa7 21. Bf6 Bxf6) 21. Rad1+ {[%emt 0:00:13]} Ke8 {[%emt 0:00:18]} 22. Rd7 {[%emt 0:00:08]} Bxd7 {[%emt 0:00:58]} 23. Qxf7+ {[%emt 0:00:05]} Kd8 {[%emt 0:00:04]} 24. Rd1 {[%emt 0:03:45]} Ra7 {[%emt 0:02:52]} 25. Ne6+ {[%emt 0:00:13]} Kc8 {[%emt 0:00:13]} 26. Nxc7 {[%emt 0:00:09]} Rxc7 {[%emt 0:00:07]} 27. Qxg7 {[%emt 0:00:03]} Re8 {[%emt 0:00:17]} 28. Qxh7 {[%emt 0:01:04]} g5 {[%emt 0:00:53]} 29. Qg6 {[%emt 0:01:57]} g4 {[%emt 0:00:30]} 30. h4 {[%emt 0:00:03]} Kb7 {[%emt 0:01:30]} 31. Rxd7 {[%emt 0:00:14]} 1-0

[Event "WYCC 2018 O16"]
[Site "Halkidiki"]
[Date "2018.10.22"]
[Round "4"]
[White "Baenziger, Fabian"]
[Black "Semjonovs, Ilja"]
[Result "1/2-1/2"]
[ECO "A43"]
[WhiteElo "2355"]
[BlackElo "2245"]
[Annotator "NA"]
[PlyCount "53"]
[EventDate "2018.10.20"]
[EventType "swiss"]
[EventCountry "GRE"]
[SourceTitle "playchess.com"]
[Source "ChessBase"]
[SourceQuality "1"]
[TimeControl "40/5400+30:1800+30"]

1. d4 {[%emt 0:00:00]} Nf6 2. Nf3 {[%emt 0:00:00]} c5 {[%emt 0:01:11]} 3. d5 {[%emt 0:00:00]} e6 {[%emt 0:00:17]} 4. Nc3 {[%emt 0:00:39]} exd5 {[%emt 0:03:32]} 5. Nxd5 {[%emt 0:00:11]} d6 {[%emt 0:03:29] A43: Schmid Benoni} (5... Nxd5 6. Qxd5 Nc6 7. Ng5 Qe7 8. c3 d6 9. Bf4 Be6 10. Qd2 d5 11. e3 h6 12. Nxe6 Qxe6 13. O-O-O O-O-O 14. Bd3 Bd6 {1-0 (53) Kramnik,V (2809)-Hou,Y (2651) Medias 2016}) 6. Bg5 {[%emt 0:06:42]} Be7 {[%emt 0:08:24]} 7. Nxe7 {[%emt 0:01:05]} Qxe7 {[%emt 0:00:06]} 8. c4 {[%emt 0:02:28]} O-O {[%emt 0:04:06]} 9. e3 {[%emt 0:03:47]} Nc6 {[%emt 0:02:22]} 10. Be2 $146 {[%emt 0:03:18]} ({Predecessor:} 10. Rc1 h6 11. Bh4 g5 12. Bg3 Rd8 13. Be2 {1-0 (32) Bernal,L (1958)-Campos,H Buenos Aires 2011}) 10... Bf5 {[%emt 0:09:37]} 11. O-O {[%emt 0:02:07]} Rfd8 {[%emt 0:11:25]} 12. Qb3 {[%emt 0:05:01]} h6 {[%emt 0:16:16]} 13. Bh4 {[%emt 0:03:39]} (13. Bxf6 $5 Qxf6 14. Qxb7 $11) 13... g5 {[%emt 0:02:00]} 14. Bg3 {[%emt 0:00:19]} d5 {[%emt 0:00:19]} 15. cxd5 {[%emt 0:03:44]} Nxd5 {[%emt 0:00:38]} 16. Rad1 {[%emt 0:04:09]} Be6 {[%emt 0:06:59]} 17. Qa4 {[%emt 0:05:40]} Nb6 {[%emt 0:09:08]} 18. Qe4 {[%emt 0:06:08]} Bxa2 {[%emt 0:02:10]} 19. Qxe7 {[%emt 0:00:06]} Nxe7 {[%emt 0:00:09]} 20. Bd6 {[%emt 0:00:04]} Ned5 {[%emt 0:03:35]} 21. Bxc5 {[%emt 0:00:17]} Bc4 {[%emt 0:00:38]} 22. Bxc4 {[%emt 0:02:30]} Nxc4 {[%emt 0:00:04]} 23. Rd4 $14 {[%emt 0:00:05]} Ndb6 {[%emt 0:01:10]} 24. b3 {[%emt 0:02:20]} Rxd4 {[%emt 0:07:35]} 25. exd4 {[%emt 0:01:36]} Na5 {[%emt 0:00:39]} 26. b4 {[%emt 0:00:42]} Nac4 {[%emt 0:00:48]} 27. Ra1 {[%emt 0:05:18]} 1/2-1/2

[Event "WYCC 2018 O16"]
[Site "Halkidiki"]
[Date "2018.10.22"]
[Round "4"]
[White "Szpar, Milosz"]
[Black "O'Donnell, Tom"]
[Result "1-0"]
[ECO "B53"]
[WhiteElo "2328"]
[BlackElo "2332"]
[Annotator "NA"]
[PlyCount "57"]
[EventDate "2018.10.20"]
[EventType "swiss"]
[EventCountry "GRE"]
[SourceTitle "playchess.com"]
[Source "ChessBase"]
[SourceQuality "1"]
[TimeControl "40/5400+30:1800+30"]

1. e4 {[%emt 0:00:00]} c5 {[%emt 0:00:00]} 2. Nf3 d6 {[%emt 0:00:00]} 3. d4 {[%emt 0:00:00]} cxd4 {[%emt 0:00:00]} 4. Qxd4 {[%emt 0:00:00]} Nc6 {[%emt 0:00:14]} 5. Bb5 {[%emt 0:00:00]} Bd7 {[%emt 0:00:06]} 6. Bxc6 {[%emt 0:00:00]} Bxc6 {[%emt 0:00:08]} 7. Nc3 {[%emt 0:00:07]} Nf6 {[%emt 0:00:51]} 8. Bg5 {[%emt 0:00:05]} e6 {[%emt 0:00:27]} 9. O-O-O {[%emt 0:00:42]} Be7 {[%emt 0:00:50]} 10. Qd3 {[%emt 0:00:24]} Qa5 {[%emt 0:04:15]} 11. h4 {[%emt 0:01:23]} O-O {[%emt 0:05:00]} 12. Nd4 {[%emt 0:00:33]} Rfc8 {[%emt 0:17:08]} 13. f4 {[%emt 0:01:19]} Rab8 {[%emt 0:10:05]} 14. Kb1 {[%emt 0:16:23]} b5 {[%emt 0:09:43]} 15. e5 {[%emt 0:09:33]} dxe5 {[%emt 0:02:05]} 16. fxe5 {[%emt 0:06:30]} b4 $16 {[%emt 0:05:13]} 17. exf6 {[%emt 0:21:08]} bxc3 {[%emt 0:00:23]} 18. b3 {[%emt 0:00:31]} Bf8 {[%emt 0:08:41]} 19. fxg7 {[%emt 0:05:14]} Bxg7 {[%emt 0:01:44]} 20. Qg3 {[%emt 0:05:22]} Be4 {[%emt 0:02:57]} 21. Bh6 {[%emt 0:13:22]} Bg6 {[%emt 0:01:07]} 22. h5 {[%emt 0:13:19]} Bxh6 {[%emt 0:01:20]} 23. hxg6 {[%emt 0:00:12]} f6 {[%emt 0:16:01]} 24. Nc6 {[%emt 0:02:09]} Rxc6 {[%emt 0:04:14]} 25. Qxb8+ {[%emt 0:00:49]} Kg7 {[%emt 0:00:02]} 26. gxh7 {[%emt 0:01:27]} Kxh7 {[%emt 0:00:17]} 27. Qf8 {[%emt 0:00:53]} Qg5 {[%emt 0:00:32]} 28. Rxh6+ {[%emt 0:00:38]} Qxh6 {[%emt 0:00:07]} 29. Qf7+ {[%emt 0:00:06]} 1-0

[Event "WYCC 2018 O16"]
[Site "Halkidiki"]
[Date "2018.10.22"]
[Round "4"]
[White "Zhalmakhanov, Ramazan"]
[Black "Carlsson, Ludvig"]
[Result "1-0"]
[ECO "A46"]
[WhiteElo "2316"]
[BlackElo "2058"]
[Annotator "NA"]
[PlyCount "61"]
[EventDate "2018.10.20"]
[EventType "swiss"]
[EventCountry "GRE"]
[SourceTitle "playchess.com"]
[Source "ChessBase"]
[SourceQuality "1"]
[TimeControl "40/5400+30:1800+30"]

1. d4 {[%emt 0:00:00]} Nf6 {[%emt 0:02:36]} 2. Bg5 {[%emt 0:01:38]} e6 {[%emt 0:04:20]} 3. Nf3 {[%emt 0:01:47]} h6 {[%emt 0:09:22]} 4. Bf4 {[%emt 0:08:53]} c5 {[%emt 0:04:24]} 5. c3 {[%emt 0:00:16] A46: 1 d4 Nf6 2 Nf3 e6: Torre, London and Colle Systems} Nc6 {[%emt 0:07:35]} 6. e3 {[%emt 0:00:19] LiveBook: 17 Games} d5 {[%emt 0:03:42]} 7. Nbd2 {[%emt 0:00:29]} Bd6 {[%emt 0:00:16]} 8. Bg3 {[%emt 0:04:31]} O-O {[%emt 0:00:16]} 9. Bb5 {[%emt 0:07:36]} Bxg3 $146 {[%emt 0:05:25]} ({Predecessor:} 9... Ne7 10. Bd3 b6 11. O-O Bb7 12. Bxd6 Qxd6 13. Ne5 Nd7 14. f4 {0-1 (77) Gozzoli,Y (2596)-Gharamian,T (2614) Nimes 2018}) 10. hxg3 {[%emt 0:00:12]} Qb6 {[%emt 0:00:07]} 11. Bxc6 {[%emt 0:02:24]} bxc6 {[%emt 0:00:22]} 12. Qc2 {[%emt 0:05:43]} a5 {[%emt 0:02:24]} 13. Ne5 {[%emt 0:05:19]} Rb8 {[%emt 0:08:23]} 14. Rb1 {[%emt 0:09:44]} Nd7 {[%emt 0:04:44]} 15. Nxd7 {[%emt 0:19:59]} Bxd7 {[%emt 0:00:09]} 16. Nb3 {[%emt 0:00:22]} cxd4 {[%emt 0:01:12]} 17. cxd4 {[%emt 0:00:25]} Qb4+ {[%emt 0:00:26]} 18. Qd2 {[%emt 0:01:42]} Qa4 {[%emt 0:00:26]} 19. Qxa5 {[%emt 0:06:30]} Qxa5+ {[%emt 0:00:43]} 20. Nxa5 {[%emt 0:00:02]} Rb5 {[%emt 0:00:08]} 21. Nb3 {[%emt 0:00:56]} Ra8 {[%emt 0:00:16]} 22. Nc5 {[%emt 0:01:12]} Be8 {[%emt 0:01:13]} 23. a4 $18 {[%emt 0:01:08]} Rb4 {[%emt 0:00:37]} 24. Kd2 {[%emt 0:01:33]} f6 {[%emt 0:00:13]} 25. b3 {[%emt 0:00:41]} Bg6 {[%emt 0:00:23]} 26. Ra1 {[%emt 0:00:08]} e5 {[%emt 0:00:14]} 27. Kc3 {[%emt 0:00:02]} Rbb8 {[%emt 0:01:21]} 28. Rhe1 {[%emt 0:03:05]} Re8 {[%emt 0:00:50]} 29. b4 {[%emt 0:00:21]} Kf7 {[%emt 0:00:47]} 30. f3 {[%emt 0:05:59]} Re7 {[%emt 0:03:40]} 31. g4 {[%emt 0:02:47]} 1-0

[Event "WYCC 2018 O16"]
[Site "Halkidiki"]
[Date "2018.10.22"]
[Round "4"]
[White "Katopodis, Dimitrios"]
[Black "Gabizon, Eyal"]
[Result "1/2-1/2"]
[ECO "E92"]
[WhiteElo "2310"]
[BlackElo "2205"]
[Annotator "NA"]
[PlyCount "57"]
[EventDate "2018.10.20"]
[EventType "swiss"]
[EventCountry "GRE"]
[SourceTitle "playchess.com"]
[Source "ChessBase"]
[SourceQuality "1"]
[TimeControl "40/5400+30:1800+30"]

1. d4 {[%emt 0:00:00]} Nf6 {[%emt 0:00:00]} 2. Nf3 {[%emt 0:00:00]} g6 {[%emt 0:00:00]} 3. c4 {[%emt 0:00:00]} Bg7 {[%emt 0:00:00]} 4. Nc3 {[%emt 0:00:13]} O-O {[%emt 0:00:00]} 5. e4 {[%emt 0:00:15]} d6 {[%emt 0:00:00]} 6. Be2 {[%emt 0:00:12]} e5 {[%emt 0:00:14]} 7. d5 {[%emt 0:00:08]} a5 {[%emt 0:00:12]} 8. Be3 {[%emt 0:00:16]} Na6 {[%emt 0:01:58]} 9. Nd2 {[%emt 0:00:20]} Nc5 {[%emt 0:03:06]} 10. O-O {[%emt 0:03:40]} h5 {[%emt 0:09:28] E94: King's Indian: Classical: 6 Be2 e5 7 0-0: Various Black 7th moves} (10... Nfd7 11. b3 f5 12. f3 Nf6 13. a3 Nh5 14. b4 Nd7 15. c5 Nf4 16. Nc4 axb4 17. axb4 Rxa1 18. Qxa1 {0-1 (35) Firouzja,A (2456)-Amonatov,F (2620) Doha 2016}) 11. Bg5 {[%emt 0:06:51]} Qd7 $146 {[%emt 0:04:42]} ({Predecessor:} 11... Qe8 12. Rc1 Bd7 13. b3 Nh7 14. Be3 h4 15. a3 f5 16. h3 Na6 17. Nf3 Bf6 18. Rb1 {1-0 (45) Huss,A (2420)-Vogt,L (2490) Switzerland 1994}) 12. f3 {[%emt 0:04:05]} Nh7 {[%emt 0:07:20]} 13. Be3 {[%emt 0:00:13]} Bf6 {[%emt 0:08:17]} 14. Qc2 {[%emt 0:05:16]} Bg5 {[%emt 0:00:37]} 15. Bf2 {[%emt 0:04:29]} f5 {[%emt 0:06:40]} 16. b3 {[%emt 0:07:15]} Qg7 {[%emt 0:05:28]} 17. Nb5 {[%emt 0:10:37]} Nf6 {[%emt 0:07:17]} 18. Bd3 {[%emt 0:05:05]} Bh6 {[%emt 0:12:47]} 19. Nc3 {[%emt 0:06:02]} f4 {[%emt 0:14:16]} 20. Rfe1 {[%emt 0:08:46]} g5 {[%emt 0:00:15]} 21. Kf1 $17 {[%emt 0:01:01]} g4 {[%emt 0:01:40]} 22. Ke2 {[%emt 0:00:20]} Na6 {[%emt 0:02:23]} 23. Kd1 {[%emt 0:04:21]} Kh8 {[%emt 0:03:54]} 24. Bf1 {[%emt 0:04:13]} c5 {[%emt 0:02:53]} 25. Nb5 {[%emt 0:02:24]} Qe7 {[%emt 0:01:01]} 26. Bh4 {[%emt 0:01:24]} Rg8 {[%emt 0:00:08]} 27. Kc1 {[%emt 0:01:32]} Bg5 {[%emt 0:00:16]} 28. Bf2 {[%emt 0:02:40]} Ne8 {[%emt 0:00:08]} 29. Kb2 {[%emt 0:01:43]} 1/2-1/2

[Event "WYCC 2018 O16"]
[Site "Halkidiki"]
[Date "2018.10.22"]
[Round "4"]
[White "Mis, Mieszko"]
[Black "Stefan, Victor"]
[Result "1-0"]
[ECO "E04"]
[WhiteElo "2307"]
[BlackElo "1998"]
[Annotator "NA"]
[PlyCount "81"]
[EventDate "2018.10.20"]
[EventType "swiss"]
[EventCountry "GRE"]
[SourceTitle "playchess.com"]
[Source "ChessBase"]
[SourceQuality "1"]
[TimeControl "40/5400+30:1800+30"]

1. d4 {[%emt 0:00:00]} d5 {[%emt 0:00:31]} 2. c4 {[%emt 0:00:00]} e6 {[%emt 0:00:09]} 3. Nf3 {[%emt 0:00:19]} Nf6 {[%emt 0:00:20]} 4. g3 {[%emt 0:00:07]} dxc4 {[%emt 0:00:19]} 5. Bg2 {[%emt 0:00:15]} Bb4+ {[%emt 0:00:22]} 6. Bd2 {[%emt 0:02:14]} c5 {[%emt 0:00:31] E04: Open Catalan: 5 Nf3} (6... a5 7. a3 Bd6 8. Qa4+ Nc6 9. O-O O-O 10. Qxc4 e5 11. dxe5 Nxe5 12. Nxe5 Bxe5 13. Qc2 c6 14. Bc3 Qe7 {½-½ (77) Fedoseev,V (2707)-Shankland,S (2727) Danzhou 2018}) 7. Bxb4 {[%emt 0:11:03]} cxb4 {[%emt 0:00:07]} 8. Ne5 {[%emt 0:00:15]} O-O {[%emt 0:00:22]} 9. Nxc4 {[%emt 0:02:27]} Nc6 {[%emt 0:00:17]} 10. e3 {[%emt 0:02:53]} e5 {[%emt 0:00:22] LiveBook: 35 Games} 11. Bxc6 {[%emt 0:35:47]} bxc6 {[%emt 0:01:50]} 12. dxe5 {[%emt 0:01:37]} Qxd1+ {[%emt 0:07:19]} 13. Kxd1 {[%emt 0:01:36]} Ng4 {[%emt 0:00:29]} 14. Ke1 {[%emt 0:10:39]} f6 $146 {[%emt 0:23:11]} 15. Nbd2 {[%emt 0:05:53]} Nxe5 {[%emt 0:02:05]} 16. Ke2 $11 {[%emt 0:08:25]} Ba6 {[%emt 0:03:00]} 17. b3 {[%emt 0:02:11]} Rad8 {[%emt 0:06:26]} 18. f4 {[%emt 0:00:28]} Nxc4 {[%emt 0:15:17]} 19. Nxc4 {[%emt 0:00:04]} Bxc4+ {[%emt 0:09:30]} 20. bxc4 {[%emt 0:00:02]} Rf7 {[%emt 0:04:10]} 21. Rhd1 {[%emt 0:02:10]} Rfd7 {[%emt 0:06:36]} 22. Rxd7 {[%emt 0:00:23]} Rxd7 {[%emt 0:00:01]} 23. a3 {[%emt 0:04:12]} c5 {[%emt 0:05:38]} 24. axb4 {[%emt 0:00:23]} cxb4 {[%emt 0:00:02]} 25. Ra5 {[%emt 0:00:24]} Kf7 {[%emt 0:09:16]} 26. Rb5 {[%emt 0:00:26]} Ke6 {[%emt 0:00:13]} 27. Rxb4 {[%emt 0:02:06]} Kd6 {[%emt 0:00:11]} 28. Kd3 {[%emt 0:03:39]} Kc6+ {[%emt 0:00:29]} 29. Kc3 {[%emt 0:00:42]} Re7 {[%emt 0:00:37]} 30. Kd4 {[%emt 0:03:23]} Rd7+ {[%emt 0:00:36]} 31. Ke4 {[%emt 0:00:01]} Re7+ {[%emt 0:01:43]} 32. Kf3 {[%emt 0:00:16]} f5 {[%emt 0:01:19]} 33. Rb5 {[%emt 0:01:09]} g6 {[%emt 0:00:12]} 34. h3 {[%emt 0:00:26]} h5 {[%emt 0:02:29]} 35. Re5 {[%emt 0:00:50]} Rxe5 {[%emt 0:00:59]} 36. fxe5 {[%emt 0:00:01]} a5 {[%emt 0:00:12]} 37. Ke2 {[%emt 0:00:01]} a4 {[%emt 0:00:16]} 38. Kd3 {[%emt 0:00:28]} a3 {[%emt 0:00:42]} 39. Kc3 {[%emt 0:00:13]} g5 {[%emt 0:00:37]} 40. h4 {[%emt 0:00:00]} a2 {[%emt 0:00:00]} 41. Kb2 {[%emt 0:01:04] Kd5} 1-0

[Event "WYCC 2018 O16"]
[Site "Halkidiki"]
[Date "2018.10.22"]
[Round "4"]
[White "Travadon, Loic"]
[Black "Rodriguez Izquierdo, Luis"]
[Result "1-0"]
[ECO "D93"]
[WhiteElo "2293"]
[BlackElo "2038"]
[Annotator "NA"]
[PlyCount "47"]
[EventDate "2018.10.20"]
[EventType "swiss"]
[EventCountry "GRE"]
[SourceTitle "playchess.com"]
[Source "ChessBase"]
[SourceQuality "1"]
[TimeControl "40/5400+30:1800+30"]

1. d4 {[%emt 0:01:07]} Nf6 {[%emt 0:00:00]} 2. Nf3 {[%emt 0:00:05]} g6 {[%emt 0:01:40]} 3. c4 {[%emt 0:00:04]} Bg7 {[%emt 0:01:12]} 4. Nc3 {[%emt 0:00:04]} d5 {[%emt 0:01:29]} 5. Bf4 {[%emt 0:00:04]} O-O {[%emt 0:01:21]} 6. e3 {[%emt 0:00:02]} c5 {[%emt 0:02:06]} 7. dxc5 {[%emt 0:00:05]} Be6 {[%emt 0:02:07]} 8. Nd4 {[%emt 0:07:16]} Nc6 {[%emt 0:03:30]} 9. Nxe6 {[%emt 0:10:45]} fxe6 {[%emt 0:00:10]} 10. Bd3 {[%emt 0:02:30]} Nh5 {[%emt 0:20:38]} 11. Bg3 {[%emt 0:01:15]} d4 {[%emt 0:11:44]} 12. exd4 {[%emt 0:01:17]} Nxg3 {[%emt 0:04:35]} 13. hxg3 {[%emt 0:01:04]} Bxd4 {[%emt 0:00:13]} 14. f4 {[%emt 0:12:42]} Bxc5 {[%emt 0:14:16]} 15. Qe2 {[%emt 0:02:31]} Nd4 {[%emt 0:14:20]} 16. Qe4 {[%emt 0:00:04]} Rf6 {[%emt 0:01:57]} 17. O-O-O {[%emt 0:04:17]} Nf5 {[%emt 0:02:26]} 18. Rh3 {[%emt 0:02:18]} Qd4 $18 {[%emt 0:05:52]} 19. Qxd4 {[%emt 0:02:58]} Bxd4 {[%emt 0:00:09]} 20. Ne4 {[%emt 0:00:37]} Rd8 {[%emt 0:02:03]} 21. Nxf6+ {[%emt 0:00:13]} exf6 {[%emt 0:00:06]} 22. Bxf5 {[%emt 0:00:18]} exf5 {[%emt 0:02:56]} 23. Kc2 {[%emt 0:00:34]} h5 {[%emt 0:00:22]} 24. g4 {[%emt 0:00:13]} 1-0

[Event "WYCC 2018 O16"]
[Site "Halkidiki"]
[Date "2018.10.22"]
[Round "4"]
[White "Jakab, Bela"]
[Black "Vestby-Ellingsen, Mads"]
[Result "1-0"]
[ECO "B40"]
[WhiteElo "2285"]
[BlackElo "2410"]
[Annotator "NA RC"]
[PlyCount "145"]
[EventDate "2018.10.20"]
[EventType "swiss"]
[EventCountry "GRE"]
[SourceTitle "playchess.com"]
[Source "ChessBase"]
[SourceQuality "1"]
[TimeControl "40/5400+30:1800+30"]

1. e4 {[%emt 0:00:00]} c5 {[%emt 0:00:02]} 2. Nf3 {[%emt 0:00:00]} e6 {[%emt 0:00:38]} 3. c3 {[%emt 0:00:00]} Nf6 {[%emt 0:00:10]} 4. e5 {[%emt 0:00:20]} Nd5 {[%emt 0:00:11]} 5. Bc4 {[%emt 0:00:09]} d6 {[%emt 0:04:06]} 6. exd6 {[%emt 0:00:36] B22: Sizilianisch (Alapin 2.c3)} (6. O-O dxe5 7. Nxe5 Bd6 8. d4 Qc7 9. Na3 a6 10. Nf3 O-O 11. Bxd5 exd5 12. dxc5 Bxc5 13. Nc2 Bf5 14. Ne3 Bxe3 15. Bxe3 {½-½ (46) Grandelius,N (2655)-Vocaturo,D (2615) Batumi 2018}) 6... Bxd6 {[%emt 0:04:50]} 7. d4 {[%emt 0:02:15]} O-O {[%emt 0:03:38]} 8. dxc5 {[%emt 0:06:29] LiveBook: 6 Games} Bxc5 {[%emt 0:00:17]} 9. O-O {[%emt 0:00:19]} Nf6 {[%emt 0:09:59]} 10. Qe2 {[%emt 0:05:56]} Qc7 $146 {[%emt 0:08:22]} ({Vorgänger:} 10... a6 11. Bf4 Nbd7 12. Nbd2 b5 13. Bb3 {0-1 (50) Praznik,N (2356)-Sikula,V (2501) Latschach 2006}) 11. Bg5 {[%emt 0:04:12]} b6 {[%emt 0:08:08]} 12. Nbd2 {[%emt 0:13:44]} Bb7 {[%emt 0:02:32]} 13. Rad1 {[%emt 0:01:07]} Nbd7 {[%emt 0:02:56]} 14. Bb3 {[%emt 0:03:56]} Rac8 {[%emt 0:10:25]} 15. Bc2 {[%emt 0:05:12]} Bd6 {[%emt 0:05:40]} 16. Ne4 {[%emt 0:07:44]} Bf4 {[%emt 0:05:55]} 17. Nxf6+ {[%emt 0:07:45]} Nxf6 {[%emt 0:00:17]} 18. Bxf6 {[%emt 0:00:19]} gxf6 {[%emt 0:00:28]} 19. Be4 {[%emt 0:01:03]} Rfd8 {[%emt 0:02:55]} 20. Bxb7 {[%emt 0:04:55]} Qxb7 {[%emt 0:00:17]} 21. Rd4 {[%emt 0:00:50]} Rxd4 {[%emt 0:02:12]} 22. Nxd4 {[%emt 0:00:07]} Qd5 {[%emt 0:12:16]} 23. Qg4+ {[%emt 0:04:52]} Qg5 {[%emt 0:00:10]} 24. Qf3 {[%emt 0:00:14]} Bd6 $14 {[%emt 0:06:24]} 25. g3 {[%emt 0:04:53]} Bf8 {[%emt 0:02:38]} 26. Qb7 {[%emt 0:01:58]} Rd8 {[%emt 0:00:58]} 27. Qxa7 {[%emt 0:00:32]} Bc5 {[%emt 0:00:33]} 28. Qc7 {[%emt 0:04:01]} Rd5 {[%emt 0:02:04]} 29. Nb3 {[%emt 0:03:16]} Rf5 {[%emt 0:00:13]} 30. Nxc5 {[%emt 0:00:24]} bxc5 {[%emt 0:00:07]} 31. a4 {[%emt 0:04:25]} Qg4 {[%emt 0:01:54]} 32. a5 {[%emt 0:00:29]} Qa4 {[%emt 0:00:35]} 33. Qb6 {[%emt 0:09:07]} c4 {[%emt 0:00:42]} 34. a6 {[%emt 0:00:19]} Ra5 {[%emt 0:01:31]} 35. Qd4 {[%emt 0:02:12]} Kg7 {[%emt 0:02:11]} 36. Rd1 {[%emt 0:01:47]} Rd5 {[%emt 0:00:20]} 37. Qg4+ {[%emt 0:00:04]} Rg5 {[%emt 0:00:08]} 38. Qe2 {[%emt 0:00:42]} Re5 {[%emt 0:01:21]} 39. Qf1 {[%emt 0:00:52]} Qxa6 {[%emt 0:00:16]} 40. b4 {[%emt 0:00:00]} Re4 {[%emt 0:00:00]} 41. Ra1 {[%emt 0:05:09]} Qb5 {[%emt 0:05:53]} 42. Qd1 {[%emt 0:00:39]} Qd5 {[%emt 0:23:35]} 43. Qxd5 {[%emt 0:03:24]} exd5 {[%emt 0:00:02]} 44. Kf1 {[%emt 0:00:08]} d4 {[%emt 0:00:46]} 45. Re1 {[%emt 0:01:23]} Rg4 {[%emt 0:01:03]} 46. f4 {[%emt 0:00:30]} f5 {[%emt 0:02:20]} 47. cxd4 {[%emt 0:01:08]} Rg6 {[%emt 0:00:07]} 48. Rc1 {[%emt 0:00:18]} Rc6 {[%emt 0:00:25]} 49. Ke2 {[%emt 0:00:37]} Kf6 {[%emt 0:00:13]} 50. Kd2 {[%emt 0:00:10]} Ke6 {[%emt 0:00:43]} 51. Kc3 {[%emt 0:00:05]} Kd5 {[%emt 0:00:17]} 52. Re1 {[%emt 0:01:04]} f6 {[%emt 0:00:31]} 53. Re7 {[%emt 0:00:07]} Ra6 {[%emt 0:00:21]} 54. Rd7+ {[%emt 0:00:20]} Ke6 {[%emt 0:00:55]} 55. Rxh7 {[%emt 0:00:11]} Kd5 {[%emt 0:00:13]} 56. Rd7+ {[%emt 0:00:05]} Ke6 {[%emt 0:00:26]} 57. Rd8 {[%emt 0:01:16]} Ra2 {[%emt 0:00:27]} 58. b5 {[%emt 0:00:43]} Ke7 {[%emt 0:01:43]} 59. Rh8 {[%emt 0:00:08]} Kd6 {[%emt 0:00:36]} 60. Kxc4 {[%emt 0:00:17]} Rc2+ {[%emt 0:00:33]} 61. Kb4 {[%emt 0:00:11]} Kc7 {[%emt 0:00:09]} 62. Rh6 {[%emt 0:00:19]} Kb7 {[%emt 0:00:24]} 63. Rxf6 {[%emt 0:00:12]} Rxh2 {[%emt 0:00:09]} 64. Rxf5 {[%emt 0:00:03]} Rh6 {[%emt 0:00:20]} 65. g4 {[%emt 0:00:12]} Rh7 {[%emt 0:00:13]} 66. g5 {[%emt 0:00:09]} Kb6 {[%emt 0:00:07]} 67. Rf6+ {[%emt 0:00:05]} Kb7 {[%emt 0:00:07]} 68. g6 {[%emt 0:00:06]} Rd7 {[%emt 0:00:14]} 69. Rf7 {[%emt 0:00:06]} Kb6 {[%emt 0:00:05]} 70. Rf6+ {[%emt 0:00:17]} Kb7 {[%emt 0:00:07]} 71. Kc5 {[%emt 0:00:31]} Rc7+ {[%emt 0:00:09]} 72. Rc6 {[%emt 0:00:12]} Re7 {[%emt 0:00:09]} 73. f5 {[%emt 0:00:19]} 1-0